bitfinex/quotes_BTCUSD_20220307
["timestamp","ask_amount","ask_price","bid_price","bid_amount"]
[1646649014940,0.47032,38184.0,38183.0,0.02606333]
[1646649015140,0.47032,38184.0,38183.0,0.02459745]
[1646649015543,0.46892453,38184.0,38183.0,0.00803009]
[1646649015743,0.56892453,38184.0,38182.0,0.00020071]
[1646649015941,0.3,38183.0,38182.0,0.00020071]
[1646649016141,0.5,38183.0,38182.0,0.00020071]
[1646649016341,0.6,38183.0,38181.0,0.01]
[1646649016543,0.6,38183.0,38181.0,0.01020071]
[1646649016544,0.3,38182.0,38181.0,0.01020071]
[1646649016743,0.6,38182.0,38181.0,0.01020071]
[1646649016945,0.6,38182.0,38179.0,0.02703072]
[1646649017143,0.065551,38181.0,38178.0,0.001]
[1646649017346,1.2,38179.0,38175.0,0.00080296]
[1646649017547,1.2,38179.0,38172.0,0.01408]
[1646649017548,0.3522,38178.0,38172.0,0.01408]
[1646649017794,0.3522,38178.0,38172.0,0.001]
[1646649017795,0.5522,38178.0,38172.0,0.001]
[1646649017997,0.2,38175.0,38172.0,0.001]
[1646649018193,0.63465168,38175.0,38172.0,0.001]
[1646649018394,0.53465168,38175.0,38172.0,0.001]
[1646649018593,0.32696613,38175.0,38172.0,0.001]
[1646649018793,0.32696613,38175.0,38172.0,0.01106751]
[1646649018794,0.2,38175.0,38172.0,0.01106751]
[1646649018994,0.1,38177.0,38174.0,0.0748994]
[1646649018995,0.110491,38177.0,38174.0,0.0748994]
[1646649019195,0.062691,38177.0,38174.0,0.0748994]
[1646649019395,0.095,38175.0,38174.0,0.0748994]
[1646649019793,0.07081126,38176.0,38174.0,0.001]
[1646649019994,0.2,38175.0,38174.0,0.001]
[1646649021206,0.2,38175.0,38174.0,0.00080001]
[1646649021396,0.3,38175.0,38174.0,0.00080001]
[1646649023038,0.36645449,38175.0,38174.0,0.00080001]
[1646649023242,0.61952049,38175.0,38174.0,0.00080001]
[1646649023440,0.71952049,38175.0,38174.0,0.00080001]
[1646649023640,0.97952049,38175.0,38174.0,0.00080001]
[1646649023845,1.2,38174.0,38173.0,0.001]
[1646649024340,1.5,38174.0,38173.0,0.001]
[1646649024746,1.4,38174.0,38173.0,0.1232468]
[1646649024941,1.5,38174.0,38173.0,0.1232468]
[1646649025385,1.5522,38174.0,38173.0,0.09586661]
[1646649026190,1.5522,38174.0,38173.0,0.05399501]
[1646649027088,1.05,38173.0,38172.0,0.001]
[1646649027392,1.05,38172.0,38167.0,0.01956156]
[1646649027588,0.3522,38171.0,38167.0,0.01956156]
[1646649027788,0.1,38168.0,38167.0,0.01956156]
[1646649027990,0.4522,38168.0,38167.0,0.01956156]
[1646649028190,0.6522,38168.0,38167.0,0.01956156]
[1646649028489,0.83275853,38168.0,38167.0,0.01956156]
[1646649028689,0.73775853,38168.0,38161.0,0.141132]
[1646649028891,0.17152273,38167.0,38161.0,0.141132]
[1646649029144,0.1,38162.0,38161.0,0.141132]
[1646649029344,0.2522,38162.0,38161.0,0.15124775]
[1646649029646,0.33244,38162.0,38161.0,0.15124775]
[1646649029848,0.50382338,38162.0,38161.0,0.15124775]
[1646649030050,0.80382338,38162.0,38161.0,0.15124775]
[1646649030249,0.73244,38162.0,38161.0,0.15124775]
[1646649030648,0.43244,38162.0,38161.0,0.15124775]
[1646649031048,0.38644,38162.0,38161.0,0.15124775]
[1646649031746,0.28644,38162.0,38161.0,0.15124775]
[1646649032146,0.33644,38162.0,38161.0,0.15124775]
[1646649032346,0.33244,38162.0,38161.0,0.15124775]
[1646649032795,0.43244,38162.0,38161.0,0.15124775]
[1646649032993,0.43244,38162.0,38157.0,0.001]
[1646649032994,1.2,38161.0,38157.0,0.001]
[1646649033195,0.3522,38160.0,38157.0,0.001]
[1646649033393,0.83838,38160.0,38157.0,0.001]
[1646649033594,0.46726659,38158.0,38157.0,0.001]
[1646649033794,1.23838,38158.0,38157.0,0.001]
[1646649034399,1.03838,38158.0,38157.0,0.001]
[1646649034594,0.88618,38158.0,38157.0,0.301]
[1646649034803,0.88618,38158.0,38157.0,0.001]
[1646649035197,0.88918,38158.0,38157.0,0.001]
[1646649035994,0.98918,38158.0,38157.0,0.001]
[1646649036394,0.98618,38158.0,38157.0,0.001]
[1646649037046,1.38618,38158.0,38157.0,0.001]
[1646649037251,1.13838,38158.0,38157.0,0.001]
[1646649037446,1.03838,38158.0,38157.0,0.001]
[1646649037848,1.13838,38158.0,38157.0,0.001]
[1646649038045,1.03838,38158.0,38157.0,0.001]
[1646649038445,1.43838,38158.0,38157.0,0.001]
[1646649038645,1.64843305,38158.0,38157.0,0.001]
[1646649038848,1.34843305,38158.0,38157.0,0.001]
[1646649039045,1.40199468,38158.0,38157.0,0.001]
[1646649039446,1.40344238,38158.0,38157.0,0.001]
[1646649041196,1.40344238,38158.0,38146.0,0.0984746]
[1646649041197,1.51662063,38156.0,38146.0,0.0984746]
[1646649041398,1.51662063,38156.0,38146.0,0.001]
[1646649041399,1.22735044,38148.0,38146.0,0.001]
[1646649041595,1.22735044,38148.0,38144.0,0.0001]
[1646649041596,1.2,38146.0,38144.0,0.0001]
[1646649041794,0.59421826,38147.0,38142.0,0.001]
[1646649041795,1.15,38144.0,38142.0,0.001]
[1646649041993,1.23838,38145.0,38142.0,0.001]
[1646649041994,1.13838,38143.0,38142.0,0.001]
[1646649042192,1.23990809,38143.0,38142.0,0.01105903]
[1646649042397,1.23990809,38143.0,38132.0,0.16179304]
[1646649042398,1.2,38141.0,38134.0,0.002]
[1646649042598,0.01483834,38142.0,38134.0,0.002]
[1646649042599,0.2512824,38140.0,38134.0,0.002]
[1646649042897,0.1,38142.0,38134.0,0.002]
[1646649042898,0.0522,38139.0,38135.0,0.01501729]
[1646649043196,0.1,38141.0,38137.0,0.02991357]
[1646649043393,0.1,38141.0,38139.0,0.0738994]
[1646649043594,0.1,38141.0,38140.0,0.01440669]
[1646649044042,0.2,38141.0,38140.0,0.01440669]
[1646649044246,0.3,38141.0,38140.0,0.01440669]
[1646649044443,0.68853464,38143.0,38140.0,0.07751369]
[1646649044644,0.3,38141.0,38140.0,0.01190669]
[1646649045046,0.3,38141.0,38127.0,0.132218]
[1646649045243,0.3,38141.0,38139.0,0.00023401]
[1646649045445,0.1,38140.0,38139.0,0.13144701]
[1646649045646,0.32964896,38140.0,38139.0,0.13144701]
[1646649046246,0.1,38140.0,38139.0,0.131213]
[1646649046445,0.4522,38140.0,38138.0,0.06583902]
[1646649046645,0.23179591,38139.0,38138.0,0.06583902]
[1646649046846,0.73179591,38139.0,38138.0,0.06583902]
[1646649047447,0.73179591,38139.0,38132.0,0.131242]
[1646649047448,1.2,38138.0,38132.0,0.131242]
[1646649047648,0.41783116,38137.0,38132.0,0.131242]
[1646649047889,0.17897892,38133.0,38132.0,0.131242]
[1646649048094,0.53117892,38133.0,38132.0,0.131242]
[1646649048493,0.3522,38133.0,38132.0,0.131242]
[1646649049288,0.2522,38133.0,38132.0,0.131242]
[1646649049491,0.5522,38133.0,38132.0,0.131242]
[1646649049691,1.0,38132.0,38128.0,0.001]
[1646649049891,0.11784175,38131.0,38128.0,0.001]
[1646649050292,0.3,38129.0,38128.0,0.001]
[1646649050493,0.6522,38129.0,38128.0,0.001]
[1646649050692,0.3522,38129.0,38128.0,0.001]
[1646649052738,0.3522,38129.0,38123.0,0.132275]
[1646649052941,0.2522,38129.0,38124.0,0.05]
[1646649053139,0.2,38128.0,38125.0,0.065637]
[1646649053340,0.2522,38128.0,38125.0,0.065637]
[1646649053540,0.1522,38128.0,38125.0,0.065637]
[1646649053742,0.4122,38128.0,38125.0,0.065637]
[1646649053941,0.1,38126.0,38125.0,0.065637]
[1646649054142,0.1,38126.0,38125.0,0.57202875]
[1646649054342,0.1,38132.0,38126.0,1.68894045]
[1646649054544,0.6,38140.0,38131.0,0.3370035]
[1646649054741,0.6,38140.0,38129.0,0.15]
[1646649054742,0.206439,38140.0,38133.0,0.25545607]
[1646649054940,0.206439,38140.0,38132.0,1.0675848]
[1646649054941,0.1,38144.0,38138.0,0.40045414]
[1646649055143,0.21989836,38144.0,38139.0,0.32944734]
[1646649055393,0.21989836,38144.0,38139.0,0.07944734]
[1646649055792,0.21989836,38144.0,38133.0,0.02937675]
[1646649055793,0.1,38140.0,38133.0,0.02937675]
[1646649056197,0.19756075,38140.0,38133.0,0.02937675]
[1646649056594,0.1,38134.0,38133.0,0.02937675]
[1646649056792,0.1,38134.0,38124.0,0.1889]
[1646649056793,0.1,38134.0,38127.0,0.02062793]
[1646649056995,0.1,38134.0,38131.0,0.065618]
[1646649057193,0.1,38135.0,38131.0,0.065618]
[1646649057401,0.1,38138.0,38132.0,0.02377894]
[1646649057594,0.1,38138.0,38134.0,0.131213]
[1646649057795,0.1,38136.0,38134.0,0.131213]
[1646649057993,0.103,38140.0,38134.0,0.131213]
[1646649057994,0.103,38140.0,38134.0,0.196818]
[1646649058194,0.010502,38136.0,38135.0,0.20728645]
[1646649058794,0.110502,38136.0,38134.0,0.546818]
[1646649059050,0.110502,38136.0,38134.0,0.181213]
[1646649059243,0.010502,38136.0,38134.0,0.181213]
[1646649059443,0.2,38142.0,38134.0,0.181213]
[1646649059847,0.1,38135.0,38134.0,0.181213]
[1646649060057,0.1,38139.0,38134.0,0.2498]
[1646649060447,0.1,38136.0,38134.0,0.31542]
[1646649060647,0.0522,38141.0,38135.0,0.61581097]
[1646649061045,0.1,38136.0,38135.0,0.81263097]
[1646649061245,0.1,38140.0,38139.0,0.21055466]
[1646649061444,0.1,38140.0,38135.0,1.10277058]
[1646649061445,0.1,38137.0,38135.0,0.90380609]
[1646649061658,0.1,38137.0,38136.0,0.17118675]
[1646649061945,0.20133951,38144.0,38136.0,0.17118675]
[1646649062145,0.1,38137.0,38136.0,0.17118675]
[1646649062348,0.1,38142.0,38136.0,0.17118675]
[1646649062546,0.1,38137.0,38136.0,0.17118675]
[1646649062792,0.02808552,38143.0,38136.0,0.17118675]
[1646649062992,0.1,38142.0,38139.0,0.1998]
[1646649063192,0.1,38141.0,38139.0,0.331026]
[1646649063396,0.00133951,38144.0,38139.0,0.331026]
[1646649063595,0.36,38140.0,38139.0,0.331026]
[1646649063797,0.6022,38140.0,38139.0,0.331026]
[1646649063994,0.6022,38140.0,38135.0,0.29271728]
[1646649063995,1.28879,38140.0,38135.0,0.29271728]
[1646649064197,0.4,38139.0,38135.0,0.29271728]
[1646649064397,1.2,38135.0,38132.0,0.065642]
[1646649064597,1.52629815,38134.0,38132.0,0.065642]
[1646649064897,0.47455709,38133.0,38132.0,0.065642]
[1646649065096,0.52675709,38133.0,38132.0,0.065642]
[1646649065304,0.62675709,38133.0,38132.0,0.065642]
[1646649065895,0.4522,38133.0,38132.0,0.02512022]
[1646649066095,0.64170589,38133.0,38132.0,0.00932022]
[1646649066543,0.7522,38133.0,38131.0,0.065633]
[1646649066746,0.4,38132.0,38131.0,0.065633]
[1646649066945,0.3,38129.0,38128.0,0.131269]
[1646649067146,0.3522,38129.0,38124.0,0.1998]
[1646649067344,0.365648,38128.0,38124.0,0.1998]
[1646649067544,0.38458078,38125.0,38123.0,0.001]
[1646649067744,0.43678078,38125.0,38123.0,0.001]
[1646649067946,0.2,38124.0,38123.0,0.001]
[1646649068147,1.13879,38124.0,38123.0,0.001]
[1646649068359,1.13879,38124.0,38122.0,0.001]
[1646649068360,1.23879,38124.0,38122.0,0.001]
[1646649068548,1.23879,38124.0,38122.0,0.066649]
[1646649068746,0.2,38123.0,38122.0,0.066649]
[1646649068949,0.0522,38123.0,38122.0,0.061649]
[1646649069148,0.1522,38123.0,38122.0,0.061649]
[1646649069349,0.88659,38124.0,38122.0,0.061649]
[1646649069350,0.644971,38124.0,38122.0,0.061649]
[1646649069547,0.697171,38124.0,38122.0,0.061649]
[1646649069746,0.2,38123.0,38122.0,0.061649]
[1646649069947,0.603351,38124.0,38122.0,0.061649]
[1646649070149,0.209531,38124.0,38122.0,0.061649]
[1646649070400,0.01573,38126.0,38122.0,0.061649]
[1646649070700,0.2,38123.0,38122.0,0.061649]
[1646649070899,0.8,38122.0,38121.0,0.02547628]
[1646649071098,0.8522,38122.0,38121.0,0.02547628]
[1646649071297,1.2522,38122.0,38121.0,0.02547628]
[1646649071601,0.565662,38121.0,38119.0,0.25983995]
[1646649071805,2.130536,38119.0,38117.0,0.001]
[1646649072006,2.130536,38119.0,38106.0,0.22509505]
[1646649072007,0.21672828,38112.0,38106.0,0.22509505]
[1646649072199,0.0522,38111.0,38107.0,0.02455847]
[1646649072799,0.1,38110.0,38108.0,0.065664]
[1646649073098,0.117872,38111.0,38108.0,0.265464]
[1646649073099,0.0522,38109.0,38108.0,0.265464]
[1646649073299,0.1522,38109.0,38108.0,0.265464]
[1646649073499,0.1522,38109.0,38108.0,0.45040561]
[1646649074757,0.1522,38109.0,38108.0,0.265464]
[1646649076560,0.1,38110.0,38109.0,0.23389717]
[1646649076858,0.1522,38110.0,38109.0,0.23389717]
[1646649077255,0.003,38110.0,38109.0,0.23389717]
[1646649077455,0.203,38110.0,38109.0,0.23389717]
[1646649077655,0.117872,38111.0,38109.0,0.23389717]
[1646649078095,0.2,38110.0,38109.0,0.23389717]
[1646649078291,0.117872,38111.0,38109.0,0.23389717]
[1646649078491,0.2,38110.0,38109.0,0.23389717]
[1646649078992,0.2,38114.0,38109.0,0.23389717]
[1646649079193,0.0522,38113.0,38109.0,0.23389717]
[1646649079793,0.2,38110.0,38109.0,0.23389717]
[1646649079994,0.0522,38113.0,38109.0,0.23389717]
[1646649079995,0.0522,38113.0,38112.0,0.21668422]
[1646649080194,0.0522,38113.0,38112.0,0.41365663]
[1646649080397,0.01311,38116.0,38113.0,0.05254018]
[1646649080599,0.13132249,38121.0,38113.0,0.05254018]
[1646649080600,0.11311,38121.0,38113.0,0.05254018]
[1646649080796,0.493178,38118.0,38116.0,0.19986007]
[1646649080996,0.099376,38118.0,38116.0,0.46529507]
[1646649081398,0.3,38125.0,38121.0,0.10552161]
[1646649081642,0.196965,38126.0,38121.0,0.23679361]
[1646649081842,0.1,38122.0,38121.0,0.23679361]
[1646649082442,0.178746,38127.0,38121.0,0.23679361]
[1646649082443,0.1,38125.0,38121.0,0.23679361]
[1646649082643,0.165636,38127.0,38121.0,0.23679361]
[1646649082644,0.065636,38127.0,38121.0,0.43665368]
[1646649082844,0.1,38122.0,38121.0,0.43665368]
[1646649083041,0.065636,38127.0,38125.0,0.19048037]
[1646649083441,0.196931,38132.0,38125.0,0.19048037]
[1646649083442,0.196931,38132.0,38125.0,0.25611337]
[1646649083643,0.196931,38132.0,38130.0,0.1998]
[1646649083842,0.196931,38132.0,38130.0,0.10656205]
[1646649084042,0.2,38131.0,38130.0,0.10656205]
[1646649084243,0.2,38131.0,38130.0,0.23780405]
[1646649084745,0.3,38131.0,38130.0,0.23780405]
[1646649085395,0.303,38131.0,38130.0,0.23780405]
[1646649086096,0.226931,38132.0,38130.0,0.23780405]
[1646649086298,0.3,38131.0,38130.0,0.23780405]
[1646649086496,0.56339676,38131.0,38130.0,0.10656205]
[1646649086695,0.56354006,38131.0,38130.0,0.10656205]
[1646649086896,0.3,38131.0,38130.0,0.10656205]
[1646649087096,0.3,38131.0,38129.0,0.131242]
[1646649087301,0.31737814,38130.0,38129.0,0.131242]
[1646649087497,0.3,38130.0,38128.0,0.181262]
[1646649087697,0.36354928,38129.0,38128.0,0.181262]
[1646649087899,0.66354928,38129.0,38128.0,0.181262]
[1646649088399,0.3,38129.0,38128.0,0.181262]
[1646649088698,0.86356555,38129.0,38128.0,0.181262]
[1646649088897,0.86356555,38129.0,38128.0,0.05]
[1646649088898,0.3,38129.0,38128.0,0.05]
[1646649089152,0.72037814,38129.0,38128.0,0.05]
[1646649089351,0.90375468,38129.0,38128.0,0.05]
[1646649089953,0.58637654,38129.0,38128.0,0.05]
[1646649090353,0.58637654,38129.0,38127.0,0.1999]
[1646649090354,0.63557654,38129.0,38127.0,0.1999]
[1646649090551,0.31628617,38128.0,38127.0,0.1999]
[1646649090752,0.76848617,38128.0,38127.0,0.1999]
[1646649091155,0.13848617,38128.0,38127.0,0.1999]
[1646649091354,0.14148617,38128.0,38127.0,0.1999]
[1646649091557,0.34148617,38128.0,38127.0,0.1999]
[1646649091855,0.44148617,38128.0,38127.0,0.1999]
[1646649093293,0.43848617,38128.0,38127.0,0.1999]
[1646649093494,0.66848617,38128.0,38127.0,0.1999]
[1646649093693,1.13876067,38128.0,38127.0,0.1999]
[1646649093894,1.06882078,38128.0,38125.0,0.04826314]
[1646649094094,0.53460111,38127.0,38125.0,0.04826314]
[1646649094297,0.465645,38127.0,38125.0,0.04826314]
[1646649094495,0.365645,38127.0,38126.0,0.065638]
[1646649094697,0.165645,38127.0,38125.0,0.04826314]
[1646649094998,0.465645,38127.0,38125.0,0.24816314]
[1646649095195,0.1,38126.0,38125.0,0.24816314]
[1646649095396,0.3,38126.0,38125.0,0.24816314]
[1646649095596,0.16523202,38126.0,38125.0,0.24816314]
[1646649095797,0.16523202,38126.0,38125.0,0.45105839]
[1646649095998,0.1,38126.0,38125.0,0.45105839]
[1646649096198,0.46357905,38126.0,38125.0,0.45105839]
[1646649096398,0.003,38127.0,38125.0,0.75105839]
[1646649096648,0.03,38128.0,38126.0,0.3]
[1646649096847,0.03,38128.0,38126.0,0.365627]
[1646649097048,0.03,38128.0,38127.0,0.3]
[1646649097651,0.13,38128.0,38127.0,0.3]
[1646649097848,0.13,38128.0,38126.0,0.265427]
[1646649098248,0.1,38127.0,38126.0,0.265427]
[1646649099052,0.2,38127.0,38126.0,0.265427]
[1646649099252,0.203,38127.0,38126.0,0.265427]
[1646649099455,0.203,38127.0,38126.0,0.1998]
[1646649099456,0.303,38127.0,38126.0,0.1998]
[1646649099651,0.61930847,38127.0,38126.0,0.1998]
[1646649100299,1.40611847,38127.0,38126.0,0.1998]
[1646649100497,1.18681,38127.0,38125.0,0.04826314]
[1646649100696,0.31632643,38126.0,38125.0,0.04826314]
[1646649100902,0.3,38126.0,38125.0,0.04826314]
[1646649101099,0.61634245,38126.0,38125.0,0.04826314]
[1646649101299,0.41634245,38126.0,38125.0,0.04826314]
[1646649101500,0.1,38126.0,38124.0,0.1999]
[1646649101699,0.2,38126.0,38124.0,0.1999]
[1646649101898,0.1,38125.0,38124.0,0.45769577]
[1646649102099,0.1,38125.0,38124.0,0.2998]
[1646649102299,0.4,38125.0,38124.0,0.2998]
[1646649102500,0.41102056,38125.0,38124.0,0.2998]
[1646649102902,0.3522,38125.0,38124.0,0.2998]
[1646649103299,0.2562,38125.0,38124.0,0.2998]
[1646649103500,0.57260034,38125.0,38124.0,0.2998]
[1646649103701,0.3562,38125.0,38124.0,0.2998]
[1646649103899,0.54182287,38125.0,38124.0,0.1868066]
[1646649104154,0.3562,38125.0,38124.0,0.1868066]
[1646649104557,0.82115611,38125.0,38124.0,0.1868066]
[1646649105163,1.00642292,38125.0,38124.0,0.1868066]
[1646649105358,0.82115611,38125.0,38124.0,0.1868066]
[1646649105559,0.72101408,38125.0,38124.0,0.1868066]
[1646649105756,0.82101408,38125.0,38124.0,0.1868066]
[1646649105955,0.72115611,38125.0,38124.0,0.1868066]
[1646649106156,0.76895611,38125.0,38124.0,0.1868066]
[1646649106959,0.50364952,38125.0,38124.0,0.1868066]
[1646649107359,0.50664952,38125.0,38124.0,0.1868066]
[1646649108207,0.50664952,38125.0,38121.0,0.05]
[1646649108507,0.3,38122.0,38121.0,0.05]
[1646649108704,0.55819777,38122.0,38121.0,0.05]
[1646649109206,0.56119777,38122.0,38121.0,0.05]
[1646649109704,0.66109777,38122.0,38121.0,0.05]
[1646649110104,0.96109777,38122.0,38121.0,0.05]
[1646649110307,0.96109777,38122.0,38121.0,0.07459438]
[1646649110507,0.95809777,38122.0,38121.0,0.07459438]
[1646649110709,1.74490777,38122.0,38119.0,0.00019875]
[1646649110908,0.17166177,38121.0,38119.0,0.00019875]
[1646649111107,1.94601849,38120.0,38119.0,0.00019875]
[1646649111307,2.04601849,38120.0,38119.0,0.00019875]
[1646649111556,2.21566988,38120.0,38119.0,0.00019875]
[1646649111757,2.31556988,38120.0,38119.0,0.00019875]
[1646649111956,0.7,38119.0,38118.0,0.03719875]
[1646649112156,2.04500777,38119.0,38118.0,0.03719875]
[1646649112354,2.61455916,38119.0,38118.0,0.03719875]
[1646649112554,2.31455916,38119.0,38118.0,0.03719875]
[1646649113357,2.51052796,38119.0,38118.0,0.03719875]
[1646649113654,2.50972477,38119.0,38118.0,0.03719875]
[1646649113857,2.53972477,38119.0,38118.0,0.01073348]
[1646649114457,2.34150139,38119.0,38118.0,0.01073348]
[1646649115300,1.85021891,38119.0,38118.0,0.01073348]
[1646649115499,1.75031891,38119.0,38118.0,0.01073348]
[1646649115904,1.85021891,38119.0,38118.0,0.01073348]
[1646649116700,1.85021891,38119.0,38118.0,0.51073348]
[1646649117099,1.75031891,38119.0,38118.0,0.56073348]
[1646649117300,1.76221531,38119.0,38118.0,0.56073348]
[1646649117503,2.01766918,38119.0,38118.0,0.56073348]
[1646649117801,1.76272598,38119.0,38118.0,0.56073348]
[1646649118201,1.76272598,38119.0,38118.0,0.51073348]
[1646649118407,1.86262598,38119.0,38118.0,0.51073348]
[1646649118602,1.85862598,38119.0,38118.0,0.51073348]
[1646649120250,1.85862598,38119.0,38118.0,0.56073348]
[1646649121055,1.85862598,38119.0,38118.0,0.16673348]
[1646649121250,1.86162598,38119.0,38118.0,0.16673348]
[1646649121451,1.86162598,38119.0,38110.0,0.25561436]
[1646649121651,1.46440484,38118.0,38117.0,0.5]
[1646649121952,2.50331484,38118.0,38114.0,0.05]
[1646649122150,0.41540526,38117.0,38114.0,0.05]
[1646649122351,0.0999,38115.0,38114.0,0.05]
[1646649122551,1.35331484,38115.0,38114.0,0.05]
[1646649122800,1.62296623,38115.0,38114.0,0.05]
[1646649123000,1.62937432,38115.0,38114.0,0.05]
[1646649124000,1.62937432,38115.0,38109.0,0.47049717]
[1646649124200,0.31646725,38110.0,38109.0,0.52049717]
[1646649124400,0.61646725,38110.0,38109.0,0.52049717]
[1646649124600,0.71646725,38110.0,38109.0,0.52049717]
[1646649124800,0.4999,38110.0,38109.0,0.52049717]
[1646649125002,0.8163222,38110.0,38109.0,0.52049717]
[1646649127450,0.4999,38110.0,38109.0,0.52049717]
[1646649127649,0.8163222,38110.0,38109.0,0.52049717]
[1646649127852,0.4999,38110.0,38109.0,0.52049717]
[1646649128050,1.1163222,38110.0,38109.0,0.52049717]
[1646649128254,0.8521,38110.0,38109.0,0.52049717]
[1646649128649,0.8521,38110.0,38109.0,0.47049717]
[1646649128857,1.2,38109.0,38103.0,0.42]
[1646649129052,0.45394611,38103.0,38102.0,0.00093267]
[1646649129251,1.85569166,38103.0,38101.0,0.4257]
[1646649129452,0.5,38101.0,38094.0,0.002]
[1646649129654,0.26347796,38098.0,38094.0,0.002]
[1646649129853,0.3,38096.0,38094.0,0.002]
[1646649130052,0.3,38096.0,38091.0,0.012]
[1646649130298,0.4022,38096.0,38093.0,0.28038503]
[1646649130498,0.2,38095.0,38093.0,0.41175203]
[1646649130800,0.3,38094.0,38092.0,0.066694]
[1646649130999,0.3,38094.0,38085.0,0.003]
[1646649131000,0.0522,38093.0,38086.0,0.19485958]
[1646649131199,0.36283887,38093.0,38085.0,0.003]
[1646649131401,0.852513,38092.0,38086.0,0.065701]
[1646649131599,0.904713,38092.0,38088.0,0.065698]
[1646649131799,0.83901,38092.0,38090.0,0.20372545]
[1646649132003,0.1,38091.0,38090.0,0.20372545]
[1646649132200,0.2,38091.0,38090.0,0.20372545]
[1646649132500,0.2,38091.0,38088.0,0.28195689]
[1646649132501,0.2,38091.0,38088.0,0.06399177]
[1646649132700,0.23294926,38090.0,38089.0,0.02293777]
[1646649132905,0.43294926,38090.0,38089.0,0.02293777]
[1646649133100,0.48514926,38090.0,38089.0,0.02317072]
[1646649133300,1.37495926,38090.0,38089.0,0.02317072]
[1646649134156,1.37495926,38090.0,38089.0,0.02293777]
[1646649134157,1.70608694,38090.0,38089.0,0.02293777]
[1646649134352,1.56608694,38090.0,38089.0,0.02293777]
[1646649134551,1.70308694,38090.0,38089.0,0.02293777]
[1646649134754,1.54195926,38090.0,38089.0,0.02293777]
[1646649134960,1.06901,38090.0,38089.0,0.02293777]
[1646649136252,1.26901,38090.0,38089.0,0.02293777]
[1646649136652,1.16901,38090.0,38089.0,0.02293777]
[1646649137558,1.16901,38090.0,38089.0,0.0050408]
[1646649137559,1.26901,38090.0,38089.0,0.0050408]
[1646649137803,1.56901,38090.0,38089.0,0.0050408]
[1646649138002,1.71541809,38090.0,38089.0,0.0050408]
[1646649138208,1.71541809,38090.0,38085.0,0.003]
[1646649138209,1.2,38089.0,38085.0,0.003]
[1646649138403,1.13901,38088.0,38086.0,0.02518452]
[1646649138604,0.52254836,38087.0,38086.0,0.02518452]
[1646649138801,1.46155836,38087.0,38086.0,0.02518452]
[1646649139201,1.46155836,38087.0,38085.0,0.003]
[1646649139402,1.23901,38087.0,38085.0,0.003]
[1646649139601,0.93901,38087.0,38086.0,0.02000391]
[1646649140209,1.23901,38087.0,38086.0,0.02000391]
[1646649141204,1.03901,38087.0,38086.0,0.02000391]
[1646649141404,0.93901,38087.0,38086.0,0.02000391]
[1646649141658,0.93901,38087.0,38086.0,0.3108135]
[1646649141854,0.54485,38087.0,38081.0,0.03390389]
[1646649142056,0.54485,38087.0,38085.0,0.20742183]
[1646649142255,0.1,38086.0,38085.0,0.20742183]
[1646649142656,0.1,38086.0,38083.0,0.265607]
[1646649142657,0.283635,38086.0,38083.0,0.19999102]
[1646649143055,0.1,38084.0,38083.0,0.19999102]
[1646649143654,0.1,38084.0,38083.0,0.39044944]
[1646649145398,0.1,38084.0,38083.0,0.69044944]
[1646649145399,0.104,38084.0,38083.0,0.69044944]
[1646649145602,0.104,38084.0,38083.0,0.39044944]
[1646649145999,0.1562,38084.0,38083.0,0.37544944]
[1646649146600,0.1522,38084.0,38083.0,0.37544944]
[1646649146801,0.1522,38084.0,38083.0,0.19054944]
[1646649147401,0.1562,38084.0,38083.0,0.19054944]
[1646649148202,0.2062,38084.0,38083.0,0.19054944]
[1646649148606,0.2022,38084.0,38083.0,0.19054944]
[1646649149557,0.153,38084.0,38083.0,0.19054944]
[1646649149759,0.103,38084.0,38083.0,0.19054944]
[1646649149959,0.003,38084.0,38083.0,0.19054944]
[1646649150358,0.003,38084.0,38083.0,0.21673944]
[1646649150564,0.39265,38087.0,38085.0,0.02619]
[1646649150864,0.065686,38099.0,38086.0,0.81774459]
[1646649150865,0.1,38092.0,38086.0,0.81774459]
[1646649151060,0.1,38092.0,38091.0,0.16391992]
[1646649151259,0.1,38092.0,38086.0,0.197027]
[1646649151460,0.010513,38088.0,38086.0,0.197027]
[1646649151861,0.1,38092.0,38086.0,0.197027]
[1646649152060,0.1,38092.0,38088.0,0.02034215]
[1646649152261,0.1,38092.0,38089.0,0.21703819]
[1646649153097,0.1,38092.0,38089.0,0.28272619]
[1646649153300,0.15,38092.0,38089.0,0.30891619]
[1646649153497,0.154,38092.0,38089.0,0.30891619]
[1646649153698,0.154,38092.0,38089.0,0.28272619]
[1646649154298,0.104,38092.0,38089.0,0.33272619]
[1646649154696,0.104,38092.0,38090.0,0.17925498]
[1646649154896,0.104,38092.0,38089.0,0.33272619]
[1646649155096,0.104,38092.0,38090.0,0.1999]
[1646649155498,0.134,38092.0,38090.0,0.1999]
[1646649155798,0.13,38092.0,38090.0,0.1999]
[1646649156216,0.15,38091.0,38090.0,0.1999]
[1646649156549,0.15,38091.0,38080.0,0.633402]
[1646649156550,0.13426951,38089.0,38080.0,0.633402]
[1646649156949,0.23426951,38089.0,38080.0,0.633402]
[1646649157156,0.19147265,38087.0,38083.0,0.00021525]
[1646649157351,0.1,38085.0,38083.0,0.00021525]
[1646649157550,0.19147265,38087.0,38083.0,0.00021525]
[1646649157551,0.1,38084.0,38083.0,0.00021525]
[1646649157952,0.98774,38084.0,38083.0,0.00021525]
[1646649158149,1.03774,38084.0,38080.0,0.002]
[1646649158350,1.28774,38084.0,38082.0,0.00021522]
[1646649158548,1.08774,38084.0,38082.0,0.00021522]
[1646649158749,0.1,38083.0,38082.0,0.00021522]